[Event "Titled Tuesday Blitz August 15 Early 2023"]
[White "Grischuk, Alexander"]
[Black "Pert, Richard G"]
[WhiteFideId "4126025"]
[BlackFideId "404748"]
[WhiteElo "3052"]
[BlackElo "2585"]
[Result "0-1"]
[Round "3"]
[TimeControl "180+1"]
[Date "2023.08.15"]
[WhiteClock "0:00:00"]
[BlackClock "0:00:17"]
[Board "54"]

1. Nf3 {[%clk 0:02:39]}  e6 {[%clk 0:02:57]} 2. g3 {[%clk 0:02:37]}  f5 {[%clk 0:02:56]} 3. Bg2 {[%clk 0:02:37]}  Nf6 {[%clk 0:02:57]} 4. O-O {[%clk 0:02:36]}  Be7 {[%clk 0:02:57]} 5. c4 {[%clk 0:02:35]}  O-O {[%clk 0:02:57]} 6. Nc3 {[%clk 0:02:35]}  d6 {[%clk 0:02:56]} 7. d4 {[%clk 0:02:34]}  Ne4 {[%clk 0:02:56]} 8. Qc2 {[%clk 0:02:26]}  Nxc3 {[%clk 0:02:56]} 9. bxc3 {[%clk 0:02:24]}  Nc6 {[%clk 0:02:52]} 10. e4 {[%clk 0:02:21]}  e5 {[%clk 0:02:52]} 11. c5 {[%clk 0:01:54]}  fxe4 {[%clk 0:02:48]} 12. Qxe4 {[%clk 0:01:54]}  d5 {[%clk 0:02:47]} 13. Qe3 {[%clk 0:01:37]}  e4 {[%clk 0:02:42]} 14. Ne1 {[%clk 0:01:35]}  b6 {[%clk 0:02:16]} 15. cxb6 {[%clk 0:01:30]}  Ba6 {[%clk 0:02:08]} 16. bxc7 {[%clk 0:01:27]}  Qxc7 {[%clk 0:02:06]} 17. Bh3 {[%clk 0:01:15]}  Bxf1 {[%clk 0:02:05]} 18. Kxf1 {[%clk 0:01:16]}  Rf6 {[%clk 0:01:54]} 19. Qe2 {[%clk 0:01:14]}  Raf8 {[%clk 0:01:50]} 20. Be3 {[%clk 0:01:13]}  Na5 {[%clk 0:01:49]} 21. Kg1 {[%clk 0:00:59]}  Nc4 {[%clk 0:01:47]} 22. Bf4 {[%clk 0:00:55]}  Bd6 {[%clk 0:01:31]} 23. Ng2 {[%clk 0:00:55]}  Bxf4 {[%clk 0:01:09]} 24. Nxf4 {[%clk 0:00:56]}  Rxf4 {[%clk 0:01:08]} 25. gxf4 {[%clk 0:00:57]}  Qxf4 {[%clk 0:01:08]} 26. Kh1 {[%clk 0:00:42]}  Rf6 {[%clk 0:01:06]} 27. Qh5 {[%clk 0:00:31]}  Nb6 {[%clk 0:00:50]} 28. Rg1 {[%clk 0:00:23]}  Qf3+ {[%clk 0:00:45]} 29. Qxf3 {[%clk 0:00:23]}  Rxf3 {[%clk 0:00:46]} 30. Be6+ {[%clk 0:00:22]}  Kf8 {[%clk 0:00:45]} 31. c4 {[%clk 0:00:18]}  dxc4 {[%clk 0:00:41]} 32. Re1 {[%clk 0:00:18]}  Rxf2 {[%clk 0:00:37]} 33. Rxe4 {[%clk 0:00:17]}  Rxa2 {[%clk 0:00:36]} 34. d5 {[%clk 0:00:08]}  Rd2 {[%clk 0:00:35]} 35. Rf4+ {[%clk 0:00:07]}  Ke7 {[%clk 0:00:35]} 36. Rf7+ {[%clk 0:00:08]}  Kd6 {[%clk 0:00:33]} 37. Rxg7 {[%clk 0:00:07]}  Nxd5 {[%clk 0:00:31]} 38. Bg8 {[%clk 0:00:04]}  c3 {[%clk 0:00:28]} 39. Bxh7 {[%clk 0:00:04]}  Nf4 {[%clk 0:00:20]} 40. h4 {[%clk 0:00:02]}  a5 {[%clk 0:00:19]} 41. Ra7 {[%clk 0:00:00]}  c2 {[%clk 0:00:17]} 0-1


[Site "https://www.chess.com"]

[Event "Titled Tuesday Blitz August 15 Early 2023"]
[White "Paravyan, David"]
[Black "Przybylski, Wojciech"]
[WhiteFideId "4194985"]
[BlackFideId "1117599"]
[WhiteElo "3003"]
[BlackElo "2568"]
[Result "1-0"]
[Round "3"]
[TimeControl "180+1"]
[Date "2023.08.15"]
[WhiteClock "0:01:19"]
[BlackClock "0:00:00"]
[Board "55"]

1. Nf3 {[%clk 0:03:00]}  Nf6 {[%clk 0:02:59]} 2. c4 {[%clk 0:03:00]}  c6 {[%clk 0:02:58]} 3. d4 {[%clk 0:02:55]}  d5 {[%clk 0:02:58]} 4. cxd5 {[%clk 0:02:56]}  cxd5 {[%clk 0:02:58]} 5. Nc3 {[%clk 0:02:57]}  Nc6 {[%clk 0:02:58]} 6. Bf4 {[%clk 0:02:57]}  a6 {[%clk 0:02:58]} 7. e3 {[%clk 0:02:54]}  e6 {[%clk 0:02:58]} 8. Ne5 {[%clk 0:02:53]}  Be7 {[%clk 0:02:58]} 9. Bd3 {[%clk 0:02:50]}  Bd7 {[%clk 0:02:57]} 10. O-O {[%clk 0:02:50]}  b5 {[%clk 0:02:54]} 11. Rc1 {[%clk 0:02:49]}  Rc8 {[%clk 0:02:52]} 12. a4 {[%clk 0:02:50]}  b4 {[%clk 0:02:36]} 13. Bxa6 {[%clk 0:02:47]}  bxc3 {[%clk 0:02:33]} 14. Bxc8 {[%clk 0:02:45]}  Qxc8 {[%clk 0:02:32]} 15. Rxc3 {[%clk 0:02:45]}  Qa8 {[%clk 0:02:11]} 16. Nxc6 {[%clk 0:02:43]}  Bxc6 {[%clk 0:02:07]} 17. Qc2 {[%clk 0:02:43]}  Bd7 {[%clk 0:02:02]} 18. b3 {[%clk 0:02:37]}  O-O {[%clk 0:01:57]} 19. Be5 {[%clk 0:02:32]}  Bd8 {[%clk 0:01:32]} 20. b4 {[%clk 0:02:06]}  Qxa4 {[%clk 0:01:19]} 21. Qxa4 {[%clk 0:02:05]}  Bxa4 {[%clk 0:01:18]} 22. Ra1 {[%clk 0:02:06]}  Bb5 {[%clk 0:01:08]} 23. Ra8 {[%clk 0:01:56]}  Be7 {[%clk 0:01:01]} 24. Rxf8+ {[%clk 0:01:54]}  Kxf8 {[%clk 0:00:39]} 25. Rc8+ {[%clk 0:01:55]}  Ne8 {[%clk 0:00:24]} 26. Rb8 {[%clk 0:01:55]}  Ba4 {[%clk 0:00:12]} 27. b5 {[%clk 0:01:55]}  f6 {[%clk 0:00:12]} 28. Bc7 {[%clk 0:01:46]}  Bxb5 {[%clk 0:00:07]} 29. Bd8 {[%clk 0:01:41]}  Bd7 {[%clk 0:00:05]} 30. Bxe7+ {[%clk 0:01:41]}  Kxe7 {[%clk 0:00:05]} 31. f3 {[%clk 0:01:42]}  h6 {[%clk 0:00:05]} 32. Kf2 {[%clk 0:01:42]}  Nd6 {[%clk 0:00:05]} 33. Rg8 {[%clk 0:01:42]}  Kf7 {[%clk 0:00:06]} 34. Ra8 {[%clk 0:01:42]}  Ke7 {[%clk 0:00:06]} 35. Rg8 {[%clk 0:01:42]}  Ne8 {[%clk 0:00:06]} 36. Rh8 {[%clk 0:01:42]}  Kf7 {[%clk 0:00:06]} 37. h4 {[%clk 0:01:42]}  Bc6 {[%clk 0:00:07]} 38. h5 {[%clk 0:01:43]}  Bb7 {[%clk 0:00:07]} 39. g4 {[%clk 0:01:43]}  Bc6 {[%clk 0:00:07]} 40. Kg3 {[%clk 0:01:44]}  Bd7 {[%clk 0:00:07]} 41. Kf4 {[%clk 0:01:44]}  f5 {[%clk 0:00:04]} 42. gxf5 {[%clk 0:01:40]}  exf5 {[%clk 0:00:04]} 43. Ke5 {[%clk 0:01:41]}  f4 {[%clk 0:00:03]} 44. Kxf4 {[%clk 0:01:38]}  Bb5 {[%clk 0:00:03]} 45. Ke5 {[%clk 0:01:38]}  Be2 {[%clk 0:00:03]} 46. Kxd5 {[%clk 0:01:35]}  Bxf3+ {[%clk 0:00:03]} 47. Ke5 {[%clk 0:01:35]}  Bxh5 {[%clk 0:00:04]} 48. d5 {[%clk 0:01:35]}  Bg4 {[%clk 0:00:04]} 49. e4 {[%clk 0:01:35]}  h5 {[%clk 0:00:05]} 50. Kf4 {[%clk 0:01:35]}  Nf6 {[%clk 0:00:05]} 51. Ra8 {[%clk 0:01:33]}  Be2 {[%clk 0:00:04]} 52. Ra7+ {[%clk 0:01:34]}  Kg6 {[%clk 0:00:05]} 53. d6 {[%clk 0:01:33]}  h4 {[%clk 0:00:05]} 54. d7 {[%clk 0:01:33]}  Nxd7 {[%clk 0:00:05]} 55. Rxd7 {[%clk 0:01:34]}  Kh6 {[%clk 0:00:05]} 56. Rd6+ {[%clk 0:01:32]}  Kh5 {[%clk 0:00:05]} 57. Rd5+ {[%clk 0:01:32]}  Kh6 {[%clk 0:00:06]} 58. Rd8 {[%clk 0:01:21]}  Bf1 {[%clk 0:00:05]} 59. Rh8+ {[%clk 0:01:21]}  Kg6 {[%clk 0:00:06]} 60. Rxh4 {[%clk 0:01:21]}  Kf6 {[%clk 0:00:06]} 61. Rg4 {[%clk 0:01:21]}  g6 {[%clk 0:00:04]} 62. Rg1 {[%clk 0:01:21]}  Bd3 {[%clk 0:00:03]} 63. Rg3 {[%clk 0:01:18]}  Bc2 {[%clk 0:00:03]} 64. Rc3 {[%clk 0:01:17]}  Bb1 {[%clk 0:00:04]} 65. Rc6+ {[%clk 0:01:18]}  Kf7 {[%clk 0:00:03]} 66. Rc7+ {[%clk 0:01:17]}  Ke6 {[%clk 0:00:03]} 67. Rc6+ {[%clk 0:01:18]}  Kf7 {[%clk 0:00:03]} 68. e5 {[%clk 0:01:18]}  Ba2 {[%clk 0:00:02]} 69. Rf6+ {[%clk 0:01:18]}  Kg7 {[%clk 0:00:02]} 70. Kg5 {[%clk 0:01:18]}  Bb1 {[%clk 0:00:02]} 71. e6 {[%clk 0:01:19]}  Ba2 {[%clk 0:00:01]} 72. e7 {[%clk 0:01:19]}  Bf7 {[%clk 0:00:01]} 73. Rf4 {[%clk 0:01:19]}  Be8 {[%clk 0:00:00]} 74. Rf8 {[%clk 0:01:19]} 1-0


[Site "https://www.chess.com"]

[Event "Titled Tuesday Blitz August 15 Early 2023"]
[White "Chigaev, Maksim"]
[Black "Manukyan, Sargis V."]
[WhiteFideId "4108116"]
[BlackFideId "13303465"]
[WhiteElo "2942"]
[BlackElo "2546"]
[Result "1-0"]
[Round "3"]
[TimeControl "180+1"]
[Date "2023.08.15"]
[WhiteClock "0:00:51"]
[BlackClock "0:00:32"]
[Board "58"]

1. e4 {[%clk 0:02:58]}  e6 {[%clk 0:02:55]} 2. d4 {[%clk 0:02:57]}  d5 {[%clk 0:02:55]} 3. Nd2 {[%clk 0:02:57]}  Be7 {[%clk 0:02:55]} 4. Ngf3 {[%clk 0:02:57]}  Nf6 {[%clk 0:02:54]} 5. e5 {[%clk 0:02:56]}  Nfd7 {[%clk 0:02:55]} 6. Bd3 {[%clk 0:02:56]}  c5 {[%clk 0:02:56]} 7. c3 {[%clk 0:02:57]}  Nc6 {[%clk 0:02:56]} 8. O-O {[%clk 0:02:57]}  g5 {[%clk 0:02:56]} 9. Qe2 {[%clk 0:02:51]}  g4 {[%clk 0:02:49]} 10. Ne1 {[%clk 0:02:50]}  h5 {[%clk 0:02:44]} 11. Qe3 {[%clk 0:02:50]}  Bg5 {[%clk 0:02:41]} 12. f4 {[%clk 0:02:47]}  gxf3 {[%clk 0:02:41]} 13. Qxf3 {[%clk 0:02:47]}  Qe7 {[%clk 0:02:34]} 14. Nc2 {[%clk 0:02:33]}  b6 {[%clk 0:02:18]} 15. Bb5 {[%clk 0:02:24]}  Bb7 {[%clk 0:02:17]} 16. Nc4 {[%clk 0:02:24]}  dxc4 {[%clk 0:02:09]} 17. Bxc6 {[%clk 0:02:23]}  Bxc6 {[%clk 0:02:01]} 18. Qxc6 {[%clk 0:02:21]}  Rd8 {[%clk 0:02:01]} 19. Bxg5 {[%clk 0:01:59]}  Qxg5 {[%clk 0:02:00]} 20. Rf2 {[%clk 0:02:00]}  cxd4 {[%clk 0:01:53]} 21. cxd4 {[%clk 0:02:01]}  O-O {[%clk 0:01:50]} 22. Raf1 {[%clk 0:02:00]}  Qg6 {[%clk 0:01:43]} 23. Qxc4 {[%clk 0:01:49]}  Rc8 {[%clk 0:01:42]} 24. Qa4 {[%clk 0:01:49]}  b5 {[%clk 0:01:34]} 25. Qb3 {[%clk 0:01:48]}  Nb6 {[%clk 0:01:29]} 26. Ne3 {[%clk 0:01:30]}  Nc4 {[%clk 0:01:06]} 27. Nd1 {[%clk 0:01:15]}  Rcd8 {[%clk 0:00:51]} 28. Rf6 {[%clk 0:00:52]}  Qe4 {[%clk 0:00:45]} 29. Qg3+ {[%clk 0:00:52]}  Kh7 {[%clk 0:00:32]} 30. Rxf7+ {[%clk 0:00:51]} 1-0


[Site "https://www.chess.com"]

[Event "Titled Tuesday Blitz August 15 Early 2023"]
[White "Nugumanov, Bakhtiyar"]
[Black "Hoang, Thi Bao Tram"]
[WhiteFideId "13701797"]
[BlackFideId "12401102"]
[WhiteElo "2091"]
[BlackElo "2657"]
[Result "0-1"]
[Round "3"]
[TimeControl "180+1"]
[Date "2023.08.15"]
[WhiteClock "0:00:05"]
[BlackClock "0:00:16"]
[Board "66"]

1. e4 {[%clk 0:03:00]}  c6 {[%clk 0:02:57]} 2. Nc3 {[%clk 0:02:56]}  d5 {[%clk 0:02:57]} 3. d4 {[%clk 0:02:56]}  dxe4 {[%clk 0:02:57]} 4. Nxe4 {[%clk 0:02:57]}  Bf5 {[%clk 0:02:57]} 5. Ng3 {[%clk 0:02:57]}  Bg6 {[%clk 0:02:58]} 6. Nh3 {[%clk 0:02:57]}  e6 {[%clk 0:02:57]} 7. Nf4 {[%clk 0:02:57]}  Bd6 {[%clk 0:02:57]} 8. h4 {[%clk 0:02:56]}  Ne7 {[%clk 0:02:53]} 9. h5 {[%clk 0:02:50]}  Bf5 {[%clk 0:02:53]} 10. Nxf5 {[%clk 0:02:51]}  Nxf5 {[%clk 0:02:54]} 11. c3 {[%clk 0:02:49]}  Qc7 {[%clk 0:02:53]} 12. Qf3 {[%clk 0:02:46]}  Nd7 {[%clk 0:02:50]} 13. Bd3 {[%clk 0:02:45]}  O-O-O {[%clk 0:02:26]} 14. Bd2 {[%clk 0:02:39]}  g6 {[%clk 0:02:19]} 15. Ne2 {[%clk 0:01:54]}  f6 {[%clk 0:01:31]} 16. O-O-O {[%clk 0:01:46]}  Ne7 {[%clk 0:01:20]} 17. Nf4 {[%clk 0:01:38]}  Bxf4 {[%clk 0:01:13]} 18. Bxf4 {[%clk 0:01:37]}  e5 {[%clk 0:01:13]} 19. Bg3 {[%clk 0:01:37]}  Qa5 {[%clk 0:01:11]} 20. Bc4 {[%clk 0:01:14]}  Nf5 {[%clk 0:01:00]} 21. dxe5 {[%clk 0:00:59]}  Nxg3 {[%clk 0:00:59]} 22. Qxg3 {[%clk 0:00:46]}  Qxe5 {[%clk 0:00:59]} 23. hxg6 {[%clk 0:00:42]}  Qxg3 {[%clk 0:00:53]} 24. fxg3 {[%clk 0:00:41]}  hxg6 {[%clk 0:00:53]} 25. Rxh8 {[%clk 0:00:42]}  Rxh8 {[%clk 0:00:54]} 26. Be6 {[%clk 0:00:41]}  Rh7 {[%clk 0:00:52]} 27. Kc2 {[%clk 0:00:35]}  Re7 {[%clk 0:00:50]} 28. Bxd7+ {[%clk 0:00:25]}  Rxd7 {[%clk 0:00:50]} 29. Re1 {[%clk 0:00:24]}  Kc7 {[%clk 0:00:46]} 30. Re6 {[%clk 0:00:23]}  Rd6 {[%clk 0:00:46]} 31. Re7+ {[%clk 0:00:22]}  Kb6 {[%clk 0:00:46]} 32. Rg7 {[%clk 0:00:18]}  g5 {[%clk 0:00:39]} 33. g4 {[%clk 0:00:17]}  Re6 {[%clk 0:00:36]} 34. Kd3 {[%clk 0:00:16]}  a5 {[%clk 0:00:30]} 35. a4 {[%clk 0:00:12]}  Re1 {[%clk 0:00:16]} 36. Rg6 {[%clk 0:00:11]}  Rg1 {[%clk 0:00:16]} 37. Rxf6 {[%clk 0:00:07]}  Rxg2 {[%clk 0:00:16]} 38. b4 {[%clk 0:00:05]}  Rxg4 {[%clk 0:00:14]} 39. b5 {[%clk 0:00:04]}  Rxa4 {[%clk 0:00:13]} 40. bxc6 {[%clk 0:00:04]}  bxc6 {[%clk 0:00:14]} 41. Rg6 {[%clk 0:00:05]}  Rg4 {[%clk 0:00:13]} 42. Kc2 {[%clk 0:00:06]}  Kb5 {[%clk 0:00:13]} 43. Kb3 {[%clk 0:00:06]}  a4+ {[%clk 0:00:13]} 44. Ka3 {[%clk 0:00:07]}  Rg3 {[%clk 0:00:14]} 45. Kb2 {[%clk 0:00:07]}  g4 {[%clk 0:00:13]} 46. Rg5+ {[%clk 0:00:04]}  c5 {[%clk 0:00:14]} 47. Rg6 {[%clk 0:00:05]}  Kc4 {[%clk 0:00:14]} 48. Ra6 {[%clk 0:00:05]}  Kb5 {[%clk 0:00:14]} 49. Rg6 {[%clk 0:00:05]}  a3+ {[%clk 0:00:15]} 50. Kxa3 {[%clk 0:00:05]}  Rxc3+ {[%clk 0:00:15]} 51. Kb2 {[%clk 0:00:06]}  Rg3 {[%clk 0:00:15]} 52. Rg5 {[%clk 0:00:06]}  Kb4 {[%clk 0:00:16]} 53. Kc2 {[%clk 0:00:06]}  Rg2+ {[%clk 0:00:16]} 54. Kd3 {[%clk 0:00:06]}  c4+ {[%clk 0:00:16]} 55. Ke3 {[%clk 0:00:06]}  c3 {[%clk 0:00:17]} 56. Rg8 {[%clk 0:00:07]}  Kb3 {[%clk 0:00:17]} 57. Kd3 {[%clk 0:00:05]}  Rg3+ {[%clk 0:00:16]} 58. Ke2 {[%clk 0:00:05]}  Kc2 {[%clk 0:00:16]} 59. Rh8 {[%clk 0:00:04]}  Rg2+ {[%clk 0:00:16]} 60. Ke3 {[%clk 0:00:04]}  Rg3+ {[%clk 0:00:15]} 61. Ke2 {[%clk 0:00:02]}  Rg1 {[%clk 0:00:16]} 62. Ke3 {[%clk 0:00:03]}  Kc1 {[%clk 0:00:15]} 63. Kf2 {[%clk 0:00:03]}  Rd1 {[%clk 0:00:15]} 64. Ke2 {[%clk 0:00:03]}  Rd2+ {[%clk 0:00:15]} 65. Ke1 {[%clk 0:00:03]}  c2 {[%clk 0:00:15]} 66. Ra8 {[%clk 0:00:04]}  Rd4 {[%clk 0:00:15]} 67. Rb8 {[%clk 0:00:03]}  Re4+ {[%clk 0:00:15]} 68. Kf2 {[%clk 0:00:03]}  Kd2 {[%clk 0:00:16]} 69. Rd8+ {[%clk 0:00:03]}  Kc3 {[%clk 0:00:16]} 70. Kg3 {[%clk 0:00:03]}  c1=Q {[%clk 0:00:15]} 71. Rc8+ {[%clk 0:00:03]}  Rc4 {[%clk 0:00:16]} 72. Rxc4+ {[%clk 0:00:04]}  Kxc4 {[%clk 0:00:16]} 73. Kxg4 {[%clk 0:00:05]} 0-1


[Site "https://www.chess.com"]

[Event "Titled Tuesday Blitz August 15 Early 2023"]
[White "Melikhov, Evgeny V."]
[Black "Nihal Sarin"]
[WhiteFideId "4122046"]
[BlackFideId "25092340"]
[WhiteElo "2394"]
[BlackElo "3135"]
[Result "0-1"]
[Round "3"]
[TimeControl "180+1"]
[Date "2023.08.15"]
[WhiteClock "0:00:00"]
[BlackClock "0:00:28"]
[Board "67"]

1. d4 {[%clk 0:03:00]}  d5 {[%clk 0:02:59]} 2. c4 {[%clk 0:03:00]}  dxc4 {[%clk 0:02:59]} 3. Nf3 {[%clk 0:02:59]}  Nf6 {[%clk 0:02:59]} 4. e3 {[%clk 0:03:00]}  Be6 {[%clk 0:03:00]} 5. Nbd2 {[%clk 0:02:44]}  c6 {[%clk 0:02:50]} 6. Bxc4 {[%clk 0:02:41]}  Bxc4 {[%clk 0:02:50]} 7. Nxc4 {[%clk 0:02:41]}  e6 {[%clk 0:02:51]} 8. O-O {[%clk 0:02:39]}  Be7 {[%clk 0:02:51]} 9. Qe2 {[%clk 0:02:27]}  O-O {[%clk 0:02:48]} 10. e4 {[%clk 0:02:26]}  Nbd7 {[%clk 0:02:45]} 11. Bg5 {[%clk 0:02:25]}  h6 {[%clk 0:02:43]} 12. Bh4 {[%clk 0:02:11]}  Nb6 {[%clk 0:02:43]} 13. Rfe1 {[%clk 0:02:06]}  Nxc4 {[%clk 0:02:16]} 14. Qxc4 {[%clk 0:02:04]}  Re8 {[%clk 0:02:15]} 15. e5 {[%clk 0:02:00]}  Nd5 {[%clk 0:02:13]} 16. Bxe7 {[%clk 0:02:00]}  Rxe7 {[%clk 0:02:08]} 17. Nd2 {[%clk 0:01:58]}  Rd7 {[%clk 0:02:08]} 18. Nf3 {[%clk 0:01:44]}  Qb6 {[%clk 0:02:06]} 19. b3 {[%clk 0:01:39]}  Rad8 {[%clk 0:02:06]} 20. Re4 {[%clk 0:01:34]}  Qb5 {[%clk 0:02:01]} 21. Rc1 {[%clk 0:01:29]}  Qa5 {[%clk 0:01:57]} 22. a4 {[%clk 0:01:25]}  a6 {[%clk 0:01:55]} 23. h4 {[%clk 0:01:22]}  Ne7 {[%clk 0:01:51]} 24. Qc5 {[%clk 0:01:17]}  Qxc5 {[%clk 0:01:49]} 25. Rxc5 {[%clk 0:01:16]}  Nf5 {[%clk 0:01:46]} 26. Rc4 {[%clk 0:01:16]}  h5 {[%clk 0:01:46]} 27. a5 {[%clk 0:01:10]}  Rd5 {[%clk 0:01:41]} 28. b4 {[%clk 0:01:08]}  Rb5 {[%clk 0:01:42]} 29. Nd2 {[%clk 0:00:57]}  Ne7 {[%clk 0:01:31]} 30. Nb3 {[%clk 0:00:51]}  Nd5 {[%clk 0:01:29]} 31. g4 {[%clk 0:00:30]}  hxg4 {[%clk 0:01:27]} 32. Rxg4 {[%clk 0:00:30]}  Nxb4 {[%clk 0:01:27]} 33. h5 {[%clk 0:00:23]}  Kh7 {[%clk 0:01:27]} 34. Rc3 {[%clk 0:00:20]}  Nd5 {[%clk 0:01:24]} 35. Rcg3 {[%clk 0:00:18]}  Rg8 {[%clk 0:01:25]} 36. Nd2 {[%clk 0:00:16]}  Ne7 {[%clk 0:01:24]} 37. Ne4 {[%clk 0:00:15]}  Kh6 {[%clk 0:00:34]} 38. Ng5 {[%clk 0:00:12]}  Rf8 {[%clk 0:00:31]} 39. Rf4 {[%clk 0:00:04]}  Nf5 {[%clk 0:00:31]} 40. Rgg4 {[%clk 0:00:03]}  Rxa5 {[%clk 0:00:29]} 41. Ne4 {[%clk 0:00:02]}  Nxd4 {[%clk 0:00:28]} 42. Nd6 {[%clk 0:00:00]}  Ne2+ {[%clk 0:00:28]} 0-1


[Site "https://www.chess.com"]

[Event "Titled Tuesday Blitz August 15 Early 2023"]
[White "FromTexas54"]
[Black "Lazavik, Denis"]
[BlackFideId "13515110"]
[WhiteElo "2505"]
[BlackElo "3043"]
[Result "0-1"]
[Round "3"]
[TimeControl "180+1"]
[Date "2023.08.15"]
[WhiteClock "0:00:00"]
[BlackClock "0:00:15"]
[Board "68"]

1. Nf3 {[%clk 0:03:00]}  d5 {[%clk 0:02:59]} 2. g3 {[%clk 0:03:00]}  g6 {[%clk 0:02:58]} 3. Bg2 {[%clk 0:03:00]}  Bg7 {[%clk 0:02:59]} 4. c4 {[%clk 0:03:00]}  dxc4 {[%clk 0:02:58]} 5. O-O {[%clk 0:02:59]}  e5 {[%clk 0:02:57]} 6. Na3 {[%clk 0:02:58]}  Nc6 {[%clk 0:02:56]} 7. Nxc4 {[%clk 0:02:58]}  Nge7 {[%clk 0:02:55]} 8. d3 {[%clk 0:02:57]}  O-O {[%clk 0:02:54]} 9. Rb1 {[%clk 0:02:55]}  a5 {[%clk 0:02:53]} 10. b3 {[%clk 0:02:54]}  Re8 {[%clk 0:02:49]} 11. Bb2 {[%clk 0:02:54]}  Nd5 {[%clk 0:02:42]} 12. a3 {[%clk 0:02:52]}  b6 {[%clk 0:02:32]} 13. b4 {[%clk 0:02:34]}  axb4 {[%clk 0:02:26]} 14. axb4 {[%clk 0:02:34]}  b5 {[%clk 0:02:20]} 15. Na3 {[%clk 0:02:29]}  Rb8 {[%clk 0:02:19]} 16. Nc2 {[%clk 0:02:10]}  Qd6 {[%clk 0:02:16]} 17. Nd2 {[%clk 0:02:04]}  f5 {[%clk 0:02:02]} 18. e4 {[%clk 0:01:49]}  Nb6 {[%clk 0:01:46]} 19. Ne3 {[%clk 0:01:40]}  f4 {[%clk 0:01:43]} 20. Nd5 {[%clk 0:01:41]}  Be6 {[%clk 0:01:37]} 21. gxf4 {[%clk 0:01:14]}  Nxd5 {[%clk 0:01:34]} 22. exd5 {[%clk 0:01:13]}  Bxd5 {[%clk 0:01:35]} 23. fxe5 {[%clk 0:01:10]}  Bxe5 {[%clk 0:01:29]} 24. Bxe5 {[%clk 0:01:10]}  Nxe5 {[%clk 0:01:18]} 25. Ne4 {[%clk 0:01:10]}  Qb6 {[%clk 0:01:13]} 26. Kh1 {[%clk 0:01:00]}  Rbd8 {[%clk 0:01:12]} 27. f4 {[%clk 0:00:57]}  Nxd3 {[%clk 0:01:02]} 28. Qxd3 {[%clk 0:00:58]}  Bxe4 {[%clk 0:01:01]} 29. Qb3+ {[%clk 0:00:58]}  Kg7 {[%clk 0:00:55]} 30. Bxe4 {[%clk 0:00:41]}  Rxe4 {[%clk 0:00:56]} 31. f5 {[%clk 0:00:41]}  Qc6 {[%clk 0:00:42]} 32. Qf3 {[%clk 0:00:24]}  Rd3 {[%clk 0:00:34]} 33. f6+ {[%clk 0:00:14]}  Kf7 {[%clk 0:00:32]} 34. Qg2 {[%clk 0:00:13]}  Rd2 {[%clk 0:00:28]} 35. Qf3 {[%clk 0:00:13]}  Rc4 {[%clk 0:00:17]} 36. Qxc6 {[%clk 0:00:10]}  Rxc6 {[%clk 0:00:18]} 37. Rbc1 {[%clk 0:00:10]}  Rc4 {[%clk 0:00:12]} 38. Rxc4 {[%clk 0:00:09]}  bxc4 {[%clk 0:00:13]} 39. Rf4 {[%clk 0:00:07]}  c3 {[%clk 0:00:14]} 40. Rc4 {[%clk 0:00:05]}  c2 {[%clk 0:00:14]} 41. Rxc7+ {[%clk 0:00:00]}  Kxf6 {[%clk 0:00:15]} 0-1


[Site "https://www.chess.com"]

[Event "Titled Tuesday Blitz August 15 Early 2023"]
[White "Svane, Rasmus"]
[Black "FunnyDuck66"]
[WhiteFideId "4657101"]
[WhiteElo "2982"]
[BlackElo "2504"]
[Result "1-0"]
[Round "3"]
[TimeControl "180+1"]
[Date "2023.08.15"]
[WhiteClock "0:00:35"]
[BlackClock "0:00:00"]
[Board "69"]

1. Nf3 {[%clk 0:02:01]}  d5 {[%clk 0:02:55]} 2. g3 {[%clk 0:01:58]}  Nf6 {[%clk 0:02:54]} 3. Bg2 {[%clk 0:01:58]}  Bg4 {[%clk 0:02:54]} 4. O-O {[%clk 0:01:59]}  c6 {[%clk 0:02:54]} 5. h3 {[%clk 0:01:59]}  Bh5 {[%clk 0:02:54]} 6. d4 {[%clk 0:01:59]}  e6 {[%clk 0:02:54]} 7. c4 {[%clk 0:02:00]}  Be7 {[%clk 0:02:54]} 8. cxd5 {[%clk 0:01:58]}  exd5 {[%clk 0:02:53]} 9. Nc3 {[%clk 0:01:57]}  O-O {[%clk 0:02:53]} 10. Ne5 {[%clk 0:01:58]}  Nbd7 {[%clk 0:02:44]} 11. f4 {[%clk 0:01:57]}  h6 {[%clk 0:01:45]} 12. Qb3 {[%clk 0:01:41]}  c5 {[%clk 0:00:58]} 13. Be3 {[%clk 0:01:24]}  Nxe5 {[%clk 0:00:48]} 14. fxe5 {[%clk 0:01:20]}  Ne4 {[%clk 0:00:37]} 15. Bxe4 {[%clk 0:01:12]}  dxe4 {[%clk 0:00:35]} 16. d5 {[%clk 0:01:13]}  Bg5 {[%clk 0:00:28]} 17. Bxc5 {[%clk 0:01:07]}  Re8 {[%clk 0:00:28]} 18. Bd4 {[%clk 0:01:03]}  Bg6 {[%clk 0:00:13]} 19. h4 {[%clk 0:00:57]}  Bxh4 {[%clk 0:00:13]} 20. gxh4 {[%clk 0:00:57]}  Qxh4 {[%clk 0:00:14]} 21. Rf2 {[%clk 0:00:51]}  e3 {[%clk 0:00:12]} 22. Rg2 {[%clk 0:00:37]}  Qxd4 {[%clk 0:00:12]} 23. e6 {[%clk 0:00:38]}  Qe5 {[%clk 0:00:05]} 24. Rf1 {[%clk 0:00:37]}  Rf8 {[%clk 0:00:04]} 25. Qxb7 {[%clk 0:00:35]}  Rab8 {[%clk 0:00:04]} 26. Qe7 {[%clk 0:00:35]}  Rxb2 {[%clk 0:00:03]} 27. exf7+ {[%clk 0:00:35]}  Bxf7 {[%clk 0:00:00]} 28. Qxe5 {[%clk 0:00:35]} 1-0


[Site "https://www.chess.com"]

[Event "Titled Tuesday Blitz August 15 Early 2023"]
[White "Moskalenko, Alexander"]
[Black "Berezin, Viktor"]
[WhiteFideId "4155351"]
[BlackFideId "14107872"]
[WhiteElo "2898"]
[BlackElo "2503"]
[Result "1-0"]
[Round "3"]
[TimeControl "180+1"]
[Date "2023.08.15"]
[WhiteClock "0:02:01"]
[BlackClock "0:00:10"]
[Board "72"]

1. d4 {[%clk 0:03:00]}  Nf6 {[%clk 0:02:56]} 2. Bg5 {[%clk 0:02:59]}  Ne4 {[%clk 0:02:55]} 3. h4 {[%clk 0:02:56]}  c6 {[%clk 0:02:49]} 4. Nd2 {[%clk 0:02:56]}  Qa5 {[%clk 0:02:38]} 5. Nf3 {[%clk 0:02:51]}  h6 {[%clk 0:02:36]} 6. c3 {[%clk 0:02:51]}  Nxf2 {[%clk 0:02:20]} 7. Kxf2 {[%clk 0:02:48]}  hxg5 {[%clk 0:02:20]} 8. Nxg5 {[%clk 0:02:46]}  d5 {[%clk 0:02:14]} 9. e4 {[%clk 0:02:41]}  dxe4 {[%clk 0:02:12]} 10. Bc4 {[%clk 0:02:40]}  e6 {[%clk 0:01:39]} 11. Ndxe4 {[%clk 0:02:35]}  Nd7 {[%clk 0:01:24]} 12. Qf3 {[%clk 0:02:30]}  f5 {[%clk 0:00:56]} 13. Ng3 {[%clk 0:02:12]}  Nf6 {[%clk 0:00:52]} 14. Rhe1 {[%clk 0:02:05]}  Be7 {[%clk 0:00:30]} 15. Bxe6 {[%clk 0:02:01]}  Bxe6 {[%clk 0:00:25]} 16. Nxe6 {[%clk 0:02:02]}  Rxh4 {[%clk 0:00:20]} 17. Nxg7+ {[%clk 0:02:01]}  Kf7 {[%clk 0:00:20]} 18. Rxe7+ {[%clk 0:02:01]}  Kxe7 {[%clk 0:00:19]} 19. N7xf5+ {[%clk 0:02:02]}  Kd7 {[%clk 0:00:18]} 20. Nxh4 {[%clk 0:02:03]}  Rf8 {[%clk 0:00:19]} 21. Qf5+ {[%clk 0:02:00]}  Qxf5+ {[%clk 0:00:18]} 22. Nhxf5 {[%clk 0:02:01]}  Ke6 {[%clk 0:00:17]} 23. Re1+ {[%clk 0:02:00]}  Kd5 {[%clk 0:00:18]} 24. Re5+ {[%clk 0:02:00]}  Kc4 {[%clk 0:00:18]} 25. Ne3+ {[%clk 0:02:01]}  Kd3 {[%clk 0:00:18]} 26. Rf5 {[%clk 0:02:01]}  Kd2 {[%clk 0:00:13]} 27. Kf3 {[%clk 0:02:01]}  Kc1 {[%clk 0:00:10]} 28. Ne4 {[%clk 0:02:01]} 1-0


[Site "https://www.chess.com"]